[Event "*** Titled Tuesday Blitz"]
[Site "Chess.com"]
[Date "2020.10.20"]
[Round "6"]
[White "kiborg1987"]
[Black "KaterynaLagno"]
[Result "0-1"]
[WhiteElo "2808"]
[BlackElo "2701"]
[TimeControl "180+1"]
[EndTime "11:07:46 PDT"]
[Termination "KaterynaLagno won by resignation"]

1. e4 {[%clk 0:03:00.9]} 1... e5 {[%clk 0:02:59.6]} 2. Nf3 {[%clk 0:03:01]} 2...
Nc6 {[%clk 0:02:59.6]} 3. c3 {[%clk 0:03:01.6]} 3... Nf6 {[%clk 0:02:57]} 4. d3
{[%clk 0:03:01.8]} 4... d5 {[%clk 0:02:55]} 5. Nbd2 {[%clk 0:02:55.2]} 5... Bc5
{[%clk 0:02:54]} 6. Be2 {[%clk 0:02:54.7]} 6... a5 {[%clk 0:02:53.4]} 7. O-O
{[%clk 0:02:54.6]} 7... O-O {[%clk 0:02:53.4]} 8. a4 {[%clk 0:02:50]} 8... Re8
{[%clk 0:02:52.1]} 9. exd5 {[%clk 0:02:50.3]} 9... Nxd5 {[%clk 0:02:51.4]} 10.
Nc4 {[%clk 0:02:50.8]} 10... h6 {[%clk 0:02:47.4]} 11. Be3 {[%clk 0:02:50.5]}
11... Nxe3 {[%clk 0:02:44.4]} 12. fxe3 {[%clk 0:02:50.3]} 12... e4 {[%clk
0:02:43.2]} 13. dxe4 {[%clk 0:02:42.2]} 13... Qxd1 {[%clk 0:02:41.2]} 14. Raxd1
{[%clk 0:02:43.1]} 14... Rxe4 {[%clk 0:02:37.8]} 15. Nd4 {[%clk 0:02:30.4]}
15... Be6 {[%clk 0:02:27.2]} 16. Bd3 {[%clk 0:01:27.3]} 16... Bxc4 {[%clk
0:02:20.7]} 17. Bxc4 {[%clk 0:01:04]} 17... Ne5 {[%clk 0:02:17.3]} 18. Bd5
{[%clk 0:00:54]} 18... Rxe3 {[%clk 0:02:17.1]} 19. Bxb7 {[%clk 0:00:41.5]} 19...
Rb8 {[%clk 0:02:16.1]} 20. Bd5 {[%clk 0:00:42.1]} 20... Rxb2 {[%clk 0:02:12.2]}
21. Kh1 {[%clk 0:00:42.6]} 21... Rxc3 {[%clk 0:02:04.1]} 22. Nb5 {[%clk
0:00:38.7]} 22... Rd3 {[%clk 0:01:46.8]} 23. Nxc7 {[%clk 0:00:34.2]} 23... Rxd1
{[%clk 0:01:42.3]} 24. Rxd1 {[%clk 0:00:35.1]} 24... Nd3 {[%clk 0:01:33.8]} 25.
Rf1 {[%clk 0:00:33.1]} 25... Nf2+ {[%clk 0:01:32.3]} 26. Kg1 {[%clk 0:00:33.5]}
26... Bb6 {[%clk 0:01:09.6]} 27. Nb5 {[%clk 0:00:31]} 27... Rd2 {[%clk
0:01:08.1]} 28. Bb3 {[%clk 0:00:27.7]} 28... Rb2 {[%clk 0:00:48.8]} 29. Bd5
{[%clk 0:00:27.4]} 29... Ng4+ {[%clk 0:00:36.8]} 30. Kh1 {[%clk 0:00:21.6]}
30... Ne3 {[%clk 0:00:36.8]} 31. Bxf7+ {[%clk 0:00:20]} 31... Kf8 {[%clk
0:00:36.9]} 0-1

[Event "*** Titled Tuesday Blitz"]
[Site "Chess.com"]
[Date "2020.10.20"]
[Round "6"]
[White "ehrenfeld"]
[Black "chessmachine14"]
[Result "1-0"]
[WhiteElo "2492"]
[BlackElo "2335"]
[TimeControl "180+1"]
[EndTime "11:07:50 PDT"]
[Termination "ehrenfeld won by resignation"]

1. e4 {[%clk 0:03:00.9]} 1... c5 {[%clk 0:02:59.4]} 2. Nc3 {[%clk 0:02:57.3]}
2... Nc6 {[%clk 0:02:58.7]} 3. Bb5 {[%clk 0:02:56.9]} 3... Qc7 {[%clk
0:02:46.7]} 4. Nf3 {[%clk 0:02:54.7]} 4... a6 {[%clk 0:02:44.2]} 5. Bxc6 {[%clk
0:02:53.7]} 5... Qxc6 {[%clk 0:02:44.1]} 6. d4 {[%clk 0:02:52.5]} 6... cxd4
{[%clk 0:02:43]} 7. Qxd4 {[%clk 0:02:49.3]} 7... d6 {[%clk 0:02:38.9]} 8. O-O
{[%clk 0:02:49.3]} 8... e5 {[%clk 0:02:33.8]} 9. Qd3 {[%clk 0:02:46.7]} 9... Nf6
{[%clk 0:02:24.6]} 10. Bg5 {[%clk 0:02:46.1]} 10... Be6 {[%clk 0:02:22.3]} 11.
Bxf6 {[%clk 0:02:41.5]} 11... gxf6 {[%clk 0:02:22.2]} 12. Nd5 {[%clk 0:02:40.9]}
12... Bxd5 {[%clk 0:02:13.5]} 13. exd5 {[%clk 0:02:37.9]} 13... Qd7 {[%clk
0:02:04.7]} 14. Nh4 {[%clk 0:02:37]} 14... Qg4 {[%clk 0:01:44]} 15. Nf5 {[%clk
0:02:32.7]} 15... h5 {[%clk 0:01:35.3]} 16. c4 {[%clk 0:02:18.2]} 16... h4
{[%clk 0:01:10.3]} 17. h3 {[%clk 0:02:16.1]} 17... Qg5 {[%clk 0:01:01.6]} 18. f4
{[%clk 0:02:15.2]} 18... Qg6 {[%clk 0:00:54]} 19. fxe5 {[%clk 0:02:08.7]} 19...
fxe5 {[%clk 0:00:48.7]} 20. Rae1 {[%clk 0:01:31]} 20... O-O-O {[%clk 0:00:45]}
21. Re2 {[%clk 0:01:29.1]} 21... Bh6 {[%clk 0:00:37.8]} 22. Ne7+ {[%clk
0:01:25.9]} 22... Kb8 {[%clk 0:00:31.1]} 23. Nxg6 {[%clk 0:01:25.7]} 23... fxg6
{[%clk 0:00:31.4]} 24. Rf7 {[%clk 0:01:24.3]} 24... Rdf8 {[%clk 0:00:25.3]} 25.
Ref2 {[%clk 0:01:23.3]} 25... Bf4 {[%clk 0:00:24.1]} 26. Rxf8+ {[%clk
0:01:19.5]} 26... Rxf8 {[%clk 0:00:22.3]} 27. Kf1 {[%clk 0:01:18.5]} 27... g5
{[%clk 0:00:21]} 28. Qg6 {[%clk 0:01:15.1]} 28... Rd8 {[%clk 0:00:20.4]} 29. Ke2
{[%clk 0:01:09.8]} 29... Kc7 {[%clk 0:00:20.4]} 30. Kd3 {[%clk 0:01:09.8]} 30...
Kb6 {[%clk 0:00:20.2]} 31. b4 {[%clk 0:01:09.2]} 31... a5 {[%clk 0:00:20.2]} 32.
bxa5+ {[%clk 0:01:05.3]} 32... Kxa5 {[%clk 0:00:20.5]} 33. Rb2 {[%clk
0:01:03.9]} 33... b6 {[%clk 0:00:09.7]} 34. Qf7 {[%clk 0:00:59.6]} 34... Ka6
{[%clk 0:00:09.5]} 35. Qc7 {[%clk 0:00:57.6]} 1-0

[Event "*** Titled Tuesday Blitz"]
[Site "Chess.com"]
[Date "2020.10.20"]
[Round "6"]
[White "aisha_zakirova"]
[Black "OsorioFernando"]
[Result "1-0"]
[WhiteElo "2172"]
[BlackElo "2272"]
[TimeControl "180+1"]
[EndTime "11:07:50 PDT"]
[Termination "aisha_zakirova won by resignation"]

1. d4 {[%clk 0:03:00.2]} 1... f5 {[%clk 0:02:59.3]} 2. e4 {[%clk 0:02:57.3]}
2... fxe4 {[%clk 0:02:58.6]} 3. Nc3 {[%clk 0:02:57.1]} 3... Nf6 {[%clk
0:02:55.1]} 4. Bg5 {[%clk 0:02:54.7]} 4... Nc6 {[%clk 0:02:52.6]} 5. d5 {[%clk
0:02:45.3]} 5... Ne5 {[%clk 0:02:52]} 6. Bxf6 {[%clk 0:02:33.9]} 6... exf6
{[%clk 0:02:50.3]} 7. Nxe4 {[%clk 0:02:31.4]} 7... f5 {[%clk 0:02:50.3]} 8. Nc3
{[%clk 0:02:23.7]} 8... g6 {[%clk 0:02:49.6]} 9. Nf3 {[%clk 0:02:11.1]} 9... Nf7
{[%clk 0:02:32.7]} 10. Qd4 {[%clk 0:02:06.7]} 10... Bh6 {[%clk 0:02:26.8]} 11.
Bc4 {[%clk 0:01:51.7]} 11... Qe7+ {[%clk 0:02:20.6]} 12. Be2 {[%clk 0:01:27]}
12... O-O {[%clk 0:02:15.4]} 13. O-O {[%clk 0:00:51.3]} 13... Nd6 {[%clk
0:02:09.2]} 14. Rfe1 {[%clk 0:00:47.4]} 14... Bg7 {[%clk 0:01:55.9]} 15. Qd2
{[%clk 0:00:42.7]} 15... h6 {[%clk 0:01:41.4]} 16. Bd3 {[%clk 0:00:39]} 16...
Qf6 {[%clk 0:01:39.8]} 17. Ne5 {[%clk 0:00:33.6]} 17... Nf7 {[%clk 0:01:23.9]}
18. Nxf7 {[%clk 0:00:27.2]} 18... Qxf7 {[%clk 0:01:20.7]} 19. d6 {[%clk
0:00:25.3]} 19... cxd6 {[%clk 0:01:12.2]} 20. Bb5 {[%clk 0:00:23.6]} 20... b6
{[%clk 0:00:59.7]} 21. Nd5 {[%clk 0:00:19.5]} 21... Bb7 {[%clk 0:00:57.7]} 22.
Bc4 {[%clk 0:00:19.1]} 22... Kh8 {[%clk 0:00:50.8]} 23. Re7 {[%clk 0:00:18.2]}
23... Qg8 {[%clk 0:00:44.8]} 24. Nf6 {[%clk 0:00:16.5]} 24... Qxc4 {[%clk
0:00:42.7]} 25. Qxh6+ {[%clk 0:00:15.9]} 1-0

[Event "*** Titled Tuesday Blitz"]
[Site "Chess.com"]
[Date "2020.10.20"]
[Round "6"]
[White "Agoking701"]
[Black "Semetey"]
[Result "0-1"]
[WhiteElo "2341"]
[BlackElo "2517"]
[TimeControl "180+1"]
[EndTime "11:07:54 PDT"]
[Termination "Semetey won by checkmate"]

1. d4 {[%clk 0:03:00.9]} 1... Nf6 {[%clk 0:02:59.6]} 2. c4 {[%clk 0:02:57]} 2...
g6 {[%clk 0:03:00.5]} 3. Nc3 {[%clk 0:02:53.2]} 3... d5 {[%clk 0:03:01]} 4. cxd5
{[%clk 0:02:49.3]} 4... Nxd5 {[%clk 0:03:01.9]} 5. e4 {[%clk 0:02:49.9]} 5...
Nxc3 {[%clk 0:03:02]} 6. bxc3 {[%clk 0:02:50.8]} 6... Bg7 {[%clk 0:03:02.6]} 7.
Bc4 {[%clk 0:02:51.1]} 7... O-O {[%clk 0:03:02.3]} 8. Ne2 {[%clk 0:02:51.5]}
8... c5 {[%clk 0:03:03.2]} 9. Be3 {[%clk 0:02:48.9]} 9... Nc6 {[%clk 0:03:03.2]}
10. O-O {[%clk 0:02:44.9]} 10... Qc7 {[%clk 0:03:01.6]} 11. Rc1 {[%clk
0:02:40.9]} 11... b6 {[%clk 0:02:59.6]} 12. d5 {[%clk 0:02:20.8]} 12... Ne5
{[%clk 0:02:55.8]} 13. Bd3 {[%clk 0:02:15.9]} 13... e6 {[%clk 0:02:46.7]} 14. c4
{[%clk 0:02:04.2]} 14... f5 {[%clk 0:02:46.6]} 15. exf5 {[%clk 0:01:55.9]} 15...
exd5 {[%clk 0:02:26.2]} 16. cxd5 {[%clk 0:01:47.7]} 16... Nxd3 {[%clk
0:02:21.6]} 17. Qxd3 {[%clk 0:01:45.3]} 17... Bxf5 {[%clk 0:02:21.6]} 18. Qc4
{[%clk 0:01:43.8]} 18... Rad8 {[%clk 0:02:21.5]} 19. Rcd1 {[%clk 0:01:40]} 19...
Be5 {[%clk 0:02:15.6]} 20. Ng3 {[%clk 0:01:23.7]} 20... Bd6 {[%clk 0:02:07.5]}
21. Kh1 {[%clk 0:01:17.6]} 21... Qb8 {[%clk 0:01:58.1]} 22. Bg5 {[%clk
0:01:05.3]} 22... Rde8 {[%clk 0:01:57.1]} 23. Rde1 {[%clk 0:01:02.5]} 23... b5
{[%clk 0:01:48.8]} 24. Qh4 {[%clk 0:01:01.7]} 24... Bd3 {[%clk 0:01:45.2]} 25.
Rxe8 {[%clk 0:00:54.3]} 25... Qxe8 {[%clk 0:01:45]} 26. Rd1 {[%clk 0:00:51.9]}
26... Rxf2 {[%clk 0:01:39.5]} 27. Nh5 {[%clk 0:00:29.1]} 27... Qe2 {[%clk
0:01:31]} 28. Rg1 {[%clk 0:00:17.4]} 28... gxh5 {[%clk 0:01:27.4]} 29. Bh6
{[%clk 0:00:15.8]} 29... Rf1 {[%clk 0:01:09.3]} 30. Qg5+ {[%clk 0:00:12.9]}
30... Bg6 {[%clk 0:01:09.2]} 31. Qd8+ {[%clk 0:00:11.4]} 31... Bf8 {[%clk
0:01:05.3]} 32. Qh4 {[%clk 0:00:06.9]} 32... Bxh6 {[%clk 0:01:02.9]} 33. Qd8+
{[%clk 0:00:03.4]} 33... Bf8 {[%clk 0:01:02.7]} 34. Qh4 {[%clk 0:00:04]} 34...
Rxg1+ {[%clk 0:00:57.2]} 35. Kxg1 {[%clk 0:00:04.9]} 35... Qe3+ {[%clk
0:00:57.6]} 36. Kf1 {[%clk 0:00:03.7]} 36... Bd3# {[%clk 0:00:57]} 0-1

[Event "*** Titled Tuesday Blitz"]
[Site "Chess.com"]
[Date "2020.10.20"]
[Round "6"]
[White "Heineccius"]
[Black "GAusal"]
[Result "1-0"]
[WhiteElo "2528"]
[BlackElo "2047"]
[TimeControl "180+1"]
[EndTime "11:07:56 PDT"]
[Termination "Heineccius won by resignation"]

1. d4 {[%clk 0:03:00.9]} 1... d5 {[%clk 0:02:59]} 2. c4 {[%clk 0:03:00.4]} 2...
c6 {[%clk 0:02:58.7]} 3. Nf3 {[%clk 0:02:59.3]} 3... Nf6 {[%clk 0:02:53.4]} 4.
e3 {[%clk 0:02:58.5]} 4... Bg4 {[%clk 0:02:52.3]} 5. Nc3 {[%clk 0:02:54.9]} 5...
e6 {[%clk 0:02:51.6]} 6. h3 {[%clk 0:02:53.9]} 6... Bxf3 {[%clk 0:02:50.9]} 7.
Qxf3 {[%clk 0:02:51.3]} 7... Be7 {[%clk 0:02:50.7]} 8. Bd3 {[%clk 0:02:46.6]}
8... Nbd7 {[%clk 0:02:45.2]} 9. cxd5 {[%clk 0:02:45]} 9... exd5 {[%clk
0:02:44.4]} 10. g4 {[%clk 0:02:43.3]} 10... h6 {[%clk 0:02:39]} 11. Bd2 {[%clk
0:02:41.2]} 11... Bd6 {[%clk 0:02:31.5]} 12. h4 {[%clk 0:02:38.7]} 12... Qe7
{[%clk 0:02:29.1]} 13. g5 {[%clk 0:02:32.7]} 13... hxg5 {[%clk 0:02:18.1]} 14.
hxg5 {[%clk 0:02:32.9]} 14... Rxh1+ {[%clk 0:02:16.3]} 15. Qxh1 {[%clk
0:02:33.8]} 15... Ne4 {[%clk 0:02:09.9]} 16. Nxe4 {[%clk 0:02:29.7]} 16... dxe4
{[%clk 0:02:09.6]} 17. Qxe4 {[%clk 0:02:29.9]} 17... O-O-O {[%clk 0:01:58.3]}
18. Qxe7 {[%clk 0:02:23]} 18... Bxe7 {[%clk 0:01:57.8]} 19. f4 {[%clk
0:02:21.8]} 19... c5 {[%clk 0:01:50.1]} 20. Bc3 {[%clk 0:02:17.2]} 20... Nb6
{[%clk 0:01:45.1]} 21. Bf5+ {[%clk 0:02:03.7]} 21... Kc7 {[%clk 0:01:41.2]} 22.
Rc1 {[%clk 0:01:58.5]} 22... Kb8 {[%clk 0:01:24.2]} 23. dxc5 {[%clk 0:01:47.2]}
23... Bxc5 {[%clk 0:01:21.8]} 24. Be5+ {[%clk 0:01:44.5]} 24... Bd6 {[%clk
0:01:20.1]} 25. Bxg7 {[%clk 0:01:11.9]} 25... Re8 {[%clk 0:01:12.5]} 26. Kf2
{[%clk 0:01:03.3]} 26... a6 {[%clk 0:00:57.6]} 27. Bd4 {[%clk 0:01:02.1]} 27...
Nd5 {[%clk 0:00:56.5]} 28. Kf3 {[%clk 0:00:51.5]} 28... b5 {[%clk 0:00:46.3]}
29. Be4 {[%clk 0:00:43.4]} 29... Nb4 {[%clk 0:00:43.6]} 30. a3 {[%clk
0:00:40.7]} 30... Re5 {[%clk 0:00:10.5]} 1-0

[Event "*** Titled Tuesday Blitz"]
[Site "Chess.com"]
[Date "2020.10.20"]
[Round "6"]
[White "Gerodot71"]
[Black "Meri-Arabidze"]
[Result "0-1"]
[WhiteElo "2454"]
[BlackElo "2643"]
[TimeControl "180+1"]
[EndTime "11:07:57 PDT"]
[Termination "Meri-Arabidze won by checkmate"]

1. d4 {[%clk 0:03:00.9]} 1... f5 {[%clk 0:02:58.3]} 2. Nc3 {[%clk 0:02:52.4]}
2... Nf6 {[%clk 0:02:57]} 3. Nf3 {[%clk 0:02:47.1]} 3... e6 {[%clk 0:02:56]} 4.
Bf4 {[%clk 0:02:44.4]} 4... b6 {[%clk 0:02:54.7]} 5. e3 {[%clk 0:02:42.1]} 5...
Bb7 {[%clk 0:02:54.6]} 6. Be2 {[%clk 0:02:40]} 6... Be7 {[%clk 0:02:54.7]} 7.
Qd2 {[%clk 0:02:39]} 7... O-O {[%clk 0:02:54.4]} 8. O-O-O {[%clk 0:02:35.6]}
8... Ne4 {[%clk 0:02:39.4]} 9. Nxe4 {[%clk 0:02:31.1]} 9... fxe4 {[%clk
0:02:40.3]} 10. Ne1 {[%clk 0:02:26.8]} 10... d6 {[%clk 0:02:39]} 11. Bg3 {[%clk
0:02:25.8]} 11... Nd7 {[%clk 0:02:36.9]} 12. f3 {[%clk 0:02:25.4]} 12... Nf6
{[%clk 0:02:35.9]} 13. Kb1 {[%clk 0:02:22]} 13... a5 {[%clk 0:02:35.3]} 14. Bf2
{[%clk 0:02:02]} 14... Kh8 {[%clk 0:02:34.9]} 15. f4 {[%clk 0:01:54.6]} 15... a4
{[%clk 0:02:35]} 16. g4 {[%clk 0:01:51.8]} 16... a3 {[%clk 0:02:34.4]} 17. b3
{[%clk 0:01:51.3]} 17... c5 {[%clk 0:02:30.3]} 18. g5 {[%clk 0:01:45.5]} 18...
Nd5 {[%clk 0:02:30]} 19. c4 {[%clk 0:01:45.4]} 19... Nb4 {[%clk 0:02:29]} 20.
Nc2 {[%clk 0:01:45.4]} 20... Nd3 {[%clk 0:02:26.7]} 21. Bg3 {[%clk 0:01:38.3]}
21... d5 {[%clk 0:02:17.4]} 22. Bxd3 {[%clk 0:01:25.6]} 22... exd3 {[%clk
0:02:17.2]} 23. Qxd3 {[%clk 0:01:26.5]} 23... dxc4 {[%clk 0:02:16.5]} 24. Qxc4
{[%clk 0:01:27.4]} 24... Bxh1 {[%clk 0:02:13.6]} 25. Rxh1 {[%clk 0:01:28.3]}
25... cxd4 {[%clk 0:02:14]} 26. Nxd4 {[%clk 0:01:28.6]} 26... Rc8 {[%clk
0:02:05.6]} 27. Qxe6 {[%clk 0:01:18.9]} 27... Bc5 {[%clk 0:02:04.1]} 28. Rd1
{[%clk 0:01:04.4]} 28... Bxd4 {[%clk 0:01:52.9]} 29. Rxd4 {[%clk 0:01:01.6]}
29... Qc7 {[%clk 0:01:53.4]} 30. Rc4 {[%clk 0:01:00.2]} 30... Qb7 {[%clk
0:01:53.9]} 31. e4 {[%clk 0:00:44.8]} 31... Rxc4 {[%clk 0:01:50.3]} 32. Qxc4
{[%clk 0:00:22.7]} 32... Rc8 {[%clk 0:01:49.8]} 33. Qd3 {[%clk 0:00:22.3]} 33...
Qc6 {[%clk 0:01:29.5]} 34. Qc4 {[%clk 0:00:22.6]} 34... Qe8 {[%clk 0:01:25.7]}
35. Qd3 {[%clk 0:00:20.6]} 35... Rd8 {[%clk 0:01:20]} 36. Qe2 {[%clk 0:00:18.8]}
36... Qc6 {[%clk 0:01:15.1]} 37. f5 {[%clk 0:00:15.4]} 37... Qc3 {[%clk
0:01:01.1]} 38. Be1 {[%clk 0:00:14]} 38... Rd1+ {[%clk 0:00:59.6]} 39. Qxd1
{[%clk 0:00:12.6]} 39... Qb2# {[%clk 0:00:59.8]} 0-1

[Event "*** Titled Tuesday Blitz"]
[Site "Chess.com"]
[Date "2020.10.20"]
[Round "6"]
[White "pedro_nascimento85"]
[Black "VladimirBugayev"]
[Result "1-0"]
[WhiteElo "2012"]
[BlackElo "2303"]
[TimeControl "180+1"]
[EndTime "11:07:59 PDT"]
[Termination "pedro_nascimento85 won on time"]

1. d4 {[%clk 0:02:38.8]} 1... Nf6 {[%clk 0:02:58.3]} 2. c4 {[%clk 0:02:29.3]}
2... c5 {[%clk 0:02:57.7]} 3. d5 {[%clk 0:02:27.8]} 3... b5 {[%clk 0:02:57.2]}
4. Qc2 {[%clk 0:02:28.2]} 4... d6 {[%clk 0:02:54.6]} 5. e4 {[%clk 0:02:24.7]}
5... bxc4 {[%clk 0:02:44.6]} 6. Bxc4 {[%clk 0:02:15.2]} 6... g6 {[%clk 0:02:42]}
7. Nc3 {[%clk 0:02:11.4]} 7... Bg7 {[%clk 0:02:41.7]} 8. Bf4 {[%clk 0:02:05.4]}
8... O-O {[%clk 0:02:41.2]} 9. Nf3 {[%clk 0:02:02.7]} 9... Nbd7 {[%clk 0:02:39]}
10. h3 {[%clk 0:02:01.5]} 10... Rb8 {[%clk 0:02:32.2]} 11. O-O {[%clk
0:01:59.1]} 11... Rb4 {[%clk 0:02:02]} 12. Nd2 {[%clk 0:01:56.3]} 12... Nh5
{[%clk 0:01:55.6]} 13. Bh2 {[%clk 0:01:52.7]} 13... Ne5 {[%clk 0:01:46.8]} 14.
Be2 {[%clk 0:01:46.4]} 14... f5 {[%clk 0:01:13.2]} 15. Bxh5 {[%clk 0:01:28.6]}
15... gxh5 {[%clk 0:01:10.7]} 16. exf5 {[%clk 0:01:28.4]} 16... Bxf5 {[%clk
0:01:08.4]} 17. Nde4 {[%clk 0:01:28.1]} 17... e6 {[%clk 0:00:30.7]} 18. f3
{[%clk 0:01:22.3]} 18... exd5 {[%clk 0:00:26.5]} 19. Nxd5 {[%clk 0:01:20.7]}
19... Rc4 {[%clk 0:00:26.8]} 20. Qb3 {[%clk 0:01:16.9]} 20... Rd4 {[%clk
0:00:11.5]} 21. Ne3+ {[%clk 0:00:54.5]} 21... Kh8 {[%clk 0:00:11]} 22. Nxf5
{[%clk 0:00:54.6]} 22... Rxf5 {[%clk 0:00:11.9]} 23. Rad1 {[%clk 0:00:52.1]}
23... Qh4 {[%clk 0:00:08.3]} 24. Qe6 {[%clk 0:00:46.8]} 24... Rf6 {[%clk
0:00:06.5]} 25. Qe8+ {[%clk 0:00:45]} 25... Rf8 {[%clk 0:00:06.5]} 26. Qe6
{[%clk 0:00:40]} 26... Rxd1 {[%clk 0:00:04]} 27. Rxd1 {[%clk 0:00:38.9]} 27...
Bf6 {[%clk 0:00:02.6]} 28. Nxd6 {[%clk 0:00:32.8]} 1-0

[Event "*** Titled Tuesday Blitz"]
[Site "Chess.com"]
[Date "2020.10.20"]
[Round "6"]
[White "GiantThresher"]
[Black "ScarpaChess"]
[Result "1-0"]
[WhiteElo "2829"]
[BlackElo "2499"]
[TimeControl "180+1"]
[EndTime "11:08:01 PDT"]
[Termination "GiantThresher won by resignation"]

1. e4 {[%clk 0:03:00.9]} 1... c5 {[%clk 0:03:00.1]} 2. Nf3 {[%clk 0:03:00.9]}
2... d6 {[%clk 0:03:00.6]} 3. Bb5+ {[%clk 0:03:00.8]} 3... Nc6 {[%clk 0:03:00]}
4. O-O {[%clk 0:03:00.5]} 4... Bd7 {[%clk 0:02:59]} 5. Re1 {[%clk 0:03:00.8]}
5... a6 {[%clk 0:02:58.2]} 6. Bxc6 {[%clk 0:03:00.7]} 6... Bxc6 {[%clk
0:02:57.8]} 7. d4 {[%clk 0:03:01.6]} 7... cxd4 {[%clk 0:02:39.1]} 8. Nxd4 {[%clk
0:03:02.5]} 8... Rc8 {[%clk 0:02:37.3]} 9. Nc3 {[%clk 0:03:00.5]} 9... e6 {[%clk
0:02:34.7]} 10. Nd5 {[%clk 0:02:29.4]} 10... Ne7 {[%clk 0:02:18.2]} 11. c4
{[%clk 0:02:23.9]} 11... exd5 {[%clk 0:02:14.6]} 12. exd5 {[%clk 0:02:23]} 12...
Bd7 {[%clk 0:02:14.8]} 13. Bg5 {[%clk 0:02:07.6]} 13... h6 {[%clk 0:02:10.3]}
14. Qh5 {[%clk 0:01:52.4]} 14... Rxc4 {[%clk 0:01:40.7]} 15. Re4 {[%clk
0:01:11.7]} 15... Qb6 {[%clk 0:01:29.5]} 16. Bxe7 {[%clk 0:00:58.9]} 16... Bxe7
{[%clk 0:01:01.5]} 17. Rxe7+ {[%clk 0:00:57.9]} 17... Kxe7 {[%clk 0:01:01.8]}
18. Qe2+ {[%clk 0:00:58.5]} 18... Kf8 {[%clk 0:00:58.4]} 19. Qxc4 {[%clk
0:00:59.4]} 19... g6 {[%clk 0:00:58.9]} 20. Qc3 {[%clk 0:00:58.3]} 20... Kg8
{[%clk 0:00:48.7]} 21. Re1 {[%clk 0:00:54.5]} 21... Qc5 {[%clk 0:00:47.4]} 22.
Re7 {[%clk 0:00:50.4]} 22... Qxc3 {[%clk 0:00:34.5]} 23. bxc3 {[%clk 0:00:51.3]}
23... Bc8 {[%clk 0:00:34.8]} 24. Nb3 {[%clk 0:00:46.4]} 24... Kg7 {[%clk
0:00:26.6]} 25. Na5 {[%clk 0:00:46.4]} 25... Kf6 {[%clk 0:00:25.4]} 26. Rc7
{[%clk 0:00:44.4]} 26... Re8 {[%clk 0:00:24.6]} 27. Kf1 {[%clk 0:00:44.5]} 27...
Bf5 {[%clk 0:00:20.1]} 28. h3 {[%clk 0:00:35.5]} 28... Bd3+ {[%clk 0:00:20.5]}
29. Kg1 {[%clk 0:00:35.1]} 29... b6 {[%clk 0:00:19.9]} 30. Nb7 {[%clk
0:00:31.7]} 30... Re1+ {[%clk 0:00:19.5]} 31. Kh2 {[%clk 0:00:31.6]} 31... Re2
{[%clk 0:00:17.9]} 32. Nxd6 {[%clk 0:00:30.9]} 32... Rxf2 {[%clk 0:00:18.5]} 33.
Rxf7+ {[%clk 0:00:30.8]} 1-0

[Event "*** Titled Tuesday Blitz"]
[Site "Chess.com"]
[Date "2020.10.20"]
[Round "6"]
[White "MIJuanReyesRosa"]
[Black "Grineva_Marianna"]
[Result "0-1"]
[WhiteElo "2099"]
[BlackElo "2250"]
[TimeControl "180+1"]
[EndTime "11:08:08 PDT"]
[Termination "Grineva_Marianna won by checkmate"]

1. d4 {[%clk 0:03:00.9]} 1... f5 {[%clk 0:02:58.5]} 2. c4 {[%clk 0:02:59.1]}
2... Nf6 {[%clk 0:02:58.4]} 3. Nc3 {[%clk 0:02:59.5]} 3... d6 {[%clk 0:02:58.5]}
4. Bf4 {[%clk 0:02:59.1]} 4... g6 {[%clk 0:02:58.5]} 5. h3 {[%clk 0:02:58.7]}
5... Bg7 {[%clk 0:02:59.1]} 6. Nf3 {[%clk 0:02:58.8]} 6... O-O {[%clk
0:02:59.6]} 7. e3 {[%clk 0:02:59.1]} 7... c6 {[%clk 0:02:50.4]} 8. Bh2 {[%clk
0:02:57.8]} 8... Qe8 {[%clk 0:02:50.5]} 9. Be2 {[%clk 0:02:56.7]} 9... Nbd7
{[%clk 0:02:46.9]} 10. Qc2 {[%clk 0:02:51.3]} 10... e5 {[%clk 0:02:46.2]} 11.
O-O {[%clk 0:02:45]} 11... e4 {[%clk 0:02:38.8]} 12. Nd2 {[%clk 0:02:41.3]}
12... Qe7 {[%clk 0:02:34.4]} 13. b4 {[%clk 0:02:34.8]} 13... Rd8 {[%clk
0:02:29.3]} 14. a4 {[%clk 0:02:28.5]} 14... Nf8 {[%clk 0:02:25.9]} 15. c5 {[%clk
0:02:16.6]} 15... d5 {[%clk 0:02:16.1]} 16. b5 {[%clk 0:02:09.7]} 16... g5
{[%clk 0:02:12.2]} 17. a5 {[%clk 0:01:55.8]} 17... Ng6 {[%clk 0:02:09.2]} 18.
Qb3 {[%clk 0:01:28.2]} 18... f4 {[%clk 0:01:58]} 19. Rfe1 {[%clk 0:00:49]} 19...
Bh6 {[%clk 0:01:43]} 20. Bf1 {[%clk 0:00:47.9]} 20... Kh8 {[%clk 0:01:25.1]} 21.
a6 {[%clk 0:00:47.1]} 21... g4 {[%clk 0:01:10.8]} 22. axb7 {[%clk 0:00:38.2]}
22... Bxb7 {[%clk 0:01:09.4]} 23. bxc6 {[%clk 0:00:31.7]} 23... Bxc6 {[%clk
0:01:10.3]} 24. Nb5 {[%clk 0:00:18.6]} 24... gxh3 {[%clk 0:00:56.3]} 25. gxh3
{[%clk 0:00:17.7]} 25... fxe3 {[%clk 0:00:45.9]} 26. fxe3 {[%clk 0:00:17.1]}
26... Nh5 {[%clk 0:00:41.6]} 27. Kh1 {[%clk 0:00:16.3]} 27... Nh4 {[%clk
0:00:34.3]} 28. Be5+ {[%clk 0:00:13.8]} 28... Bg7 {[%clk 0:00:33]} 29. Bxg7+
{[%clk 0:00:11.7]} 29... Qxg7 {[%clk 0:00:33.9]} 30. Re2 {[%clk 0:00:09]} 30...
Rg8 {[%clk 0:00:32.3]} 31. Ra2 {[%clk 0:00:07.3]} 31... Qg1# {[%clk 0:00:28.6]}
0-1